bitfinex/quotes_BTCUSD_20230103
["timestamp","ask_amount","ask_price","bid_price","bid_amount"]
[1672711214857,10.46041236,16704.0,16703.0,0.60345345]
[1672711217150,10.46041236,16704.0,16703.0,0.003]
[1672711218152,10.46041236,16704.0,16703.0,0.703]
[1672711224187,10.46041236,16704.0,16703.0,0.003]
[1672711224438,9.8547392,16704.0,16703.0,0.003]
[1672711224688,9.8547392,16704.0,16703.0,0.703]
[1672711225431,10.46014586,16704.0,16703.0,0.703]
[1672711228643,10.65705656,16704.0,16703.0,0.703]
[1672711228890,10.46014586,16704.0,16703.0,0.700519]
[1672711229653,9.8547392,16704.0,16703.0,0.700519]
[1672711235160,9.8547392,16704.0,16703.0,0.000519]
[1672711236395,9.8547392,16704.0,16703.0,0.700519]
[1672711237144,10.082954,16704.0,16703.0,0.700519]
[1672711237886,10.082954,16704.0,16703.0,0.000519]
[1672711239154,10.082954,16704.0,16702.0,1.0663]
[1672711239393,0.8704,16703.0,16702.0,1.0663]
[1672711239646,2.067788,16703.0,16702.0,1.0663]
[1672711240140,9.567788,16703.0,16702.0,1.0663]
[1672711241131,9.567788,16703.0,16702.0,1.0693]
[1672711241382,9.567788,16703.0,16702.0,1.0663]
[1672711241649,9.659788,16703.0,16702.0,1.0703]
[1672711245907,9.567788,16703.0,16702.0,1.0663]
[1672711246165,9.584788,16703.0,16702.0,1.0713]
[1672711249212,9.884158,16703.0,16702.0,1.0713]
[1672711249459,9.884158,16703.0,16702.0,1.7713]
[1672711250206,9.884148,16703.0,16702.0,1.7713]
[1672711255522,9.884148,16703.0,16702.0,1.0713]
[1672711256030,9.884158,16703.0,16702.0,1.0713]
[1672711256516,9.884158,16703.0,16702.0,1.7713]
[1672711257831,9.722258,16703.0,16702.0,1.7713]
[1672711259620,9.96290642,16703.0,16702.0,1.7713]
[1672711260385,9.722258,16703.0,16702.0,1.7713]
[1672711262687,9.722258,16703.0,16702.0,1.0713]
[1672711263742,9.722258,16703.0,16702.0,1.7713]
[1672711263974,9.722258,16703.0,16702.0,0.705]
[1672711264256,9.884058,16703.0,16702.0,0.70491074]
[1672711264724,10.76867496,16703.0,16702.0,0.70491074]
[1672711265761,9.884058,16703.0,16702.0,0.70491074]
[1672711266736,9.884058,16703.0,16702.0,0.00491074]
[1672711270315,10.48446027,16703.0,16702.0,0.00491074]
[1672711271341,9.884058,16703.0,16702.0,0.00491074]
[1672711272634,9.884058,16703.0,16702.0,0.00461964]
[1672711273842,9.722258,16703.0,16702.0,0.00461964]
[1672711277862,8.52487,16703.0,16702.0,0.00461964]
[1672711278115,9.722258,16703.0,16702.0,0.00461964]
[1672711280640,9.722238,16703.0,16702.0,0.00461964]
[1672711285461,10.32264027,16703.0,16702.0,0.00461964]
[1672711285729,9.722238,16703.0,16702.0,0.00461964]
[1672711295611,9.722238,16703.0,16702.0,0.00453367]
[1672711297126,10.60685496,16703.0,16702.0,0.00453367]
[1672711298640,9.722238,16703.0,16702.0,0.00453367]
[1672711301885,9.722258,16703.0,16702.0,0.00453367]
[1672711305869,10.60687496,16703.0,16702.0,0.00453367]
[1672711306130,9.722258,16703.0,16702.0,0.00453367]
[1672711306881,10.92626162,16703.0,16702.0,0.00453367]
[1672711307410,10.60687496,16703.0,16702.0,0.00453367]
[1672711316800,10.60687496,16703.0,16702.0,0.00444831]
[1672711320824,10.62444832,16703.0,16702.0,0.00444831]
[1672711329049,9.44046136,16703.0,16702.0,0.00444831]
[1672711329335,9.14046136,16703.0,16702.0,0.00444831]
[1672711330100,9.14046136,16703.0,16702.0,1.10256407]
[1672711330352,8.73196136,16703.0,16702.0,2.36659661]
[1672711330638,9.33883138,16703.0,16702.0,2.44925361]
[1672711330877,9.33883138,16703.0,16702.0,2.34174705]
[1672711331129,9.33883138,16703.0,16702.0,1.72440405]
[1672711331387,9.33883138,16703.0,16702.0,2.34174705]
[1672711331654,9.3473093,16703.0,16702.0,2.34174705]
[1672711331918,8.74057789,16703.0,16702.0,1.72440405]
[1672711332195,8.74046136,16703.0,16702.0,1.72440405]
[1672711332688,9.04046136,16703.0,16702.0,1.72440405]
[1672711333472,9.04046136,16703.0,16702.0,2.34174705]
[1672711333719,9.27931308,16703.0,16702.0,2.34174705]
[1672711333978,9.27931308,16703.0,16702.0,1.72440405]
[1672711334280,9.57931308,16703.0,16702.0,1.72440405]
[1672711336002,9.57931308,16703.0,16702.0,1.47268405]
[1672711337228,9.57931308,16703.0,16702.0,1.47258764]
[1672711339888,9.57942961,16703.0,16702.0,1.47258764]
[1672711340138,9.57931308,16703.0,16702.0,1.47258764]
[1672711340743,9.57931308,16703.0,16702.0,0.77258764]
[1672711341478,9.57931308,16703.0,16702.0,1.47258764]
[1672711341710,9.57942961,16703.0,16702.0,1.47258764]
[1672711342183,9.57931308,16703.0,16702.0,1.47258764]
[1672711342655,9.57496708,16703.0,16702.0,1.47258764]
[1672711343630,9.57508361,16703.0,16702.0,1.47258764]
[1672711344146,9.57496708,16703.0,16702.0,1.47258764]
[1672711345864,9.03611536,16703.0,16702.0,1.47258764]
[1672711347571,9.03611536,16703.0,16702.0,0.77258764]
[1672711347814,9.03611536,16703.0,16702.0,0.61068764]
[1672711348533,9.03611536,16703.0,16702.0,1.31068764]
[1672711348534,9.03603639,16703.0,16702.0,1.31068764]
[1672711349256,9.48450419,16703.0,16702.0,1.31068764]
[1672711350212,9.48450419,16703.0,16702.0,0.7043519]
[1672711351230,9.18462072,16703.0,16702.0,0.7043519]
[1672711351468,9.48462072,16703.0,16702.0,0.7043519]
[1672711351949,9.03603639,16703.0,16702.0,0.7043519]
[1672711352463,9.48447818,16703.0,16702.0,0.7043519]
[1672711352694,9.03603639,16703.0,16702.0,0.7043519]
[1672711356248,9.03615292,16703.0,16702.0,0.7043519]
[1672711356500,9.03603639,16703.0,16702.0,0.7043519]
[1672711356770,9.57488811,16703.0,16702.0,0.7043519]
[1672711357516,9.57500464,16703.0,16702.0,0.7043519]
[1672711357784,9.03603639,16703.0,16702.0,0.7043519]
[1672711358571,9.57488811,16703.0,16702.0,0.7043519]
[1672711358815,9.03603639,16703.0,16702.0,0.7043519]
[1672711360301,8.73603639,16703.0,16702.0,0.7043519]
[1672711361352,9.03603639,16703.0,16702.0,0.7043519]
[1672711364851,8.73603639,16703.0,16702.0,0.7043519]
[1672711365352,9.27488811,16703.0,16702.0,0.7043519]
[1672711366098,9.27488811,16703.0,16702.0,0.0043519]
[1672711367094,9.27488811,16703.0,16702.0,0.70010001]
[1672711367344,9.57488811,16703.0,16702.0,1.40010001]
[1672711367847,9.57488811,16703.0,16702.0,1.56200001]
[1672711369317,9.57488811,16703.0,16702.0,1.56192158]
[1672711371095,9.27488811,16703.0,16702.0,1.56192158]
[1672711371356,9.27500464,16703.0,16702.0,1.56192158]
[1672711371608,9.27488811,16703.0,16702.0,1.56192158]
[1672711371880,9.57488811,16703.0,16702.0,1.56192158]
[1672711373406,9.57488811,16703.0,16702.0,0.86192158]
[1672711374173,9.57488811,16703.0,16702.0,1.56192158]
[1672711376399,9.57500464,16703.0,16702.0,1.56192158]
[1672711376648,9.57488811,16703.0,16702.0,1.56192158]
[1672711378106,9.57500464,16703.0,16702.0,1.56192158]
[1672711378362,2.07931308,16703.0,16702.0,1.56192158]
[1672711379200,1.54037562,16703.0,16702.0,1.56192158]
[1672711380268,1.54037562,16703.0,16702.0,0.86192158]
[1672711380760,1.54049215,16703.0,16702.0,0.86192158]
[1672711381002,1.54037562,16703.0,16702.0,1.56192158]
[1672711381766,1.77988356,16703.0,16702.0,1.56192158]
[1672711382758,1.77988356,16703.0,16702.0,1.55692158]
[1672711383982,9.27988356,16703.0,16702.0,1.55692158]
[1672711385242,9.28000009,16703.0,16702.0,1.55692158]
[1672711385489,9.27988356,16703.0,16702.0,1.55692158]
[1672711388400,9.28000009,16703.0,16702.0,1.55692158]
[1672711388658,9.27988356,16703.0,16702.0,1.55692158]
[1672711391390,1.77988356,16703.0,16702.0,0.85692158]
[1672711391903,9.27988356,16703.0,16702.0,0.85692158]
[1672711392146,9.28000009,16703.0,16702.0,0.85692158]
[1672711392648,9.27988356,16703.0,16702.0,0.85692158]
[1672711392906,9.27138356,16703.0,16702.0,1.55692158]
[1672711393398,9.27150009,16703.0,16702.0,1.55692158]
[1672711393914,9.27138356,16703.0,16702.0,1.55692158]
[1672711394383,9.27150009,16703.0,16702.0,1.55692158]
[1672711394630,9.27138356,16703.0,16702.0,1.55692158]
[1672711397188,9.27138356,16703.0,16702.0,0.8619]
[1672711397438,9.03199215,16703.0,16702.0,0.8619]
[1672711398027,9.57154378,16703.0,16702.0,0.7]
[1672711398795,9.03199215,16703.0,16702.0,0.7]
[1672711399347,9.57154149,16703.0,16702.0,0.7]
[1672711399826,9.27142496,16703.0,16702.0,0.7]
[1672711401984,9.57154149,16703.0,16702.0,0.7]
[1672711402241,9.27142496,16703.0,16702.0,0.7]
[1672711402501,9.27142496,16703.0,16702.0,1.2986554]
[1672711403517,9.27154149,16703.0,16702.0,1.2986554]
[1672711403776,9.27142496,16703.0,16702.0,1.2986554]
[1672711404573,9.27142496,16703.0,16702.0,1.29854602]
[1672711405825,9.27154149,16703.0,16702.0,1.29854602]
[1672711406081,9.27142496,16703.0,16702.0,1.29854602]
[1672711406595,9.27132404,16703.0,16702.0,1.29854602]
[1672711407809,0.0343867,16703.0,16702.0,2.34719558]
[1672711408068,0.0343867,16703.0,16702.0,2.23968902]
[1672711408320,0.0343867,16703.0,16702.0,1.62234602]
[1672711408595,0.48398681,16703.0,16702.0,1.62234602]
[1672711408862,0.48398681,16703.0,16702.0,2.34719558]
[1672711409393,0.48398681,16703.0,16702.0,2.96453858]
[1672711409882,0.0343867,16703.0,16702.0,2.34719558]
[1672711414282,0.0343867,16703.0,16702.0,3.49002571]
[1672711414525,0.0343867,16703.0,16702.0,3.13486871]
[1672711414804,0.0343867,16703.0,16702.0,2.97296871]
[1672711415055,0.0343867,16703.0,16702.0,2.35562571]
[1672711417696,0.0343867,16703.0,16702.0,1.63077615]
[1672711417952,0.0343867,16703.0,16702.0,2.35562571]
[1672711421291,0.0343867,16703.0,16702.0,1.63077615]
[1672711422547,0.0343867,16703.0,16702.0,1.74824018]
[1672711422811,0.0343867,16703.0,16702.0,2.36065002]
[1672711426539,0.0343867,16703.0,16702.0,2.97799302]
[1672711427051,0.0343867,16703.0,16702.0,2.36558318]
[1672711429049,0.0343867,16703.0,16702.0,2.36548429]
[1672711429290,0.0343867,16703.0,16702.0,3.06116147]
[1672711429513,0.0343867,16703.0,16702.0,2.36548429]
[1672711431008,0.0343867,16703.0,16702.0,2.96421429]
[1672711432063,1e-08,16703.0,16702.0,3.59144022]
[1672711432312,1e-08,16703.0,16702.0,2.96421429]
[1672711432805,0.01857944,16703.0,16702.0,2.96421429]
[1672711434551,0.01857944,16703.0,16702.0,2.98248524]
[1672711434803,0.01857944,16703.0,16702.0,3.76042441]
[1672711435073,0.01857944,16703.0,16702.0,3.58121524]
[1672711435323,0.01857944,16703.0,16702.0,3.74311524]
[1672711436832,0.01857944,16703.0,16702.0,3.92232441]
[1672711437076,0.01857944,16703.0,16702.0,3.74311524]
[1672711437856,0.01857944,16703.0,16702.0,3.92232441]
[1672711440160,0.01857944,16703.0,16702.0,4.55294178]
[1672711440376,0.01857944,16703.0,16702.0,4.37748391]
[1672711440623,0.01857944,16703.0,16702.0,4.55669308]
[1672711440881,0.01857944,16703.0,16702.0,3.74311524]
[1672711441392,0.01857944,16703.0,16702.0,3.92232441]
[1672711444040,0.02857944,16703.0,16702.0,3.27453268]
[1672711444292,0.01857944,16703.0,16702.0,3.22253268]
[1672711444553,0.02757944,16703.0,16702.0,3.27553268]
[1672711445090,0.02757944,16703.0,16702.0,4.38433713]
[1672711445315,0.02757944,16703.0,16702.0,3.95726173]
[1672711446330,0.02757944,16703.0,16702.0,4.47969128]
[1672711446570,0.02757944,16703.0,16702.0,3.77805256]
[1672711446813,0.02757944,16703.0,16702.0,3.95726173]
[1672711447802,0.02757944,16703.0,16702.0,4.52304774]
[1672711448052,0.02757944,16703.0,16702.0,3.95726173]
[1672711448292,0.02757944,16703.0,16702.0,4.48444539]
[1672711449053,0.02757944,16703.0,16702.0,3.77805256]
[1672711449569,0.02757944,16703.0,16702.0,3.95726173]
[1672711449808,0.02757944,16703.0,16702.0,4.35124415]
[1672711450052,0.02757944,16703.0,16702.0,3.77805256]
[1672711450292,0.02757944,16703.0,16702.0,3.95726173]
[1672711450549,0.02757944,16703.0,16702.0,3.79536173]
[1672711452275,0.02757944,16703.0,16702.0,4.06398208]
[1672711452529,0.02757944,16703.0,16702.0,3.79536173]
[1672711454513,0.02757944,16703.0,16702.0,3.44663908]
[1672711455537,0.02757944,16703.0,16702.0,4.33200316]
[1672711455789,0.02757944,16703.0,16702.0,3.44663908]
[1672711456552,0.02757944,16703.0,16702.0,4.33200651]
[1672711456797,0.02757944,16703.0,16702.0,5.03741648]
[1672711457051,0.02757944,16703.0,16702.0,4.33200651]
[1672711459093,0.02757944,16703.0,16702.0,3.44663908]
[1672711459338,0.02757944,16703.0,16702.0,4.33200763]
[1672711460353,0.02757944,16703.0,16702.0,3.44654002]
[1672711460609,0.02757944,16703.0,16702.0,2.74654002]
[1672711461089,0.02757944,16703.0,16702.0,3.631911]
[1672711461591,0.02757944,16703.0,16702.0,4.331911]
[1672711461845,0.01883089,16706.0,16703.0,0.4]
[1672711462105,0.01883089,16706.0,16704.0,0.88644956]
[1672711462371,0.01883089,16706.0,16705.0,0.72484956]
[1672711462619,0.01883089,16706.0,16704.0,1.58644956]
[1672711462867,0.02683089,16706.0,16704.0,1.58644956]
[1672711463123,0.02683089,16706.0,16705.0,0.54837615]
[1672711463385,0.02683089,16706.0,16705.0,1.27322571]
[1672711463642,0.02683089,16706.0,16705.0,2.65256871]
[1672711463918,0.02683089,16706.0,16705.0,1.92771915]
[1672711464162,0.02683089,16706.0,16705.0,1.31037615]
[1672711465954,0.02683089,16706.0,16705.0,0.762]
[1672711466305,0.23019,16711.0,16706.0,0.4]
[1672711466306,0.01474371,16710.0,16706.0,0.4]
[1672711466499,0.59851,16709.0,16707.0,1.58989782]
[1672711466754,0.61321471,16710.0,16708.0,1.3498378]
[1672711467014,1.21165871,16710.0,16709.0,0.617343]
[1672711467275,1.22015871,16710.0,16709.0,0.7324948]
[1672711467573,1.21165871,16710.0,16707.0,0.7324948]
[1672711467871,1.21165871,16710.0,16709.0,0.7]
[1672711468387,1.21165871,16710.0,16709.0,1.21146541]
[1672711468920,0.61318771,16710.0,16709.0,1.35446541]
[1672711469428,0.61318771,16710.0,16709.0,2.08696021]
[1672711469936,0.61318771,16710.0,16709.0,1.35446541]
[1672711472735,0.77388771,16710.0,16709.0,1.21146541]
[1672711472980,0.77388771,16710.0,16709.0,1.35246541]
[1672711474230,0.1619,16712.0,16710.0,0.67326144]
[1672711474511,0.760311,16711.0,16710.0,2.35923394]
[1672711474775,0.760311,16711.0,16710.0,2.11917392]
[1672711475031,0.760311,16711.0,16710.0,1.37326144]
[1672711475556,0.760311,16711.0,16710.0,1.46126144]
[1672711475781,0.760311,16711.0,16710.0,1.37326144]
[1672711476038,0.760311,16711.0,16710.0,1.51626144]
[1672711480854,0.760311,16711.0,16710.0,0.81626144]
[1672711481692,0.760311,16711.0,16710.0,1.51626144]
[1672711486087,1.358719,16711.0,16710.0,1.51626144]
[1672711486328,1.658719,16711.0,16710.0,1.51626144]
[1672711486571,1.358719,16711.0,16710.0,1.51626144]
[1672711487866,1.658719,16711.0,16710.0,1.51626144]
[1672711488378,1.358719,16711.0,16710.0,1.51626144]
[1672711492956,1.358719,16711.0,16710.0,2.26217392]
[1672711494516,0.760308,16711.0,16710.0,2.26217392]
[1672711494996,0.760308,16711.0,16710.0,2.26209754]
[1672711495513,0.760308,16711.0,16710.0,2.11909754]
[1672711495764,0.760308,16711.0,16710.0,2.26209754]
[1672711498022,0.598408,16711.0,16710.0,2.26209754]
[1672711498521,0.598408,16711.0,16710.0,2.11909754]
[1672711498775,0.598408,16711.0,16710.0,2.26009754]
[1672711500243,0.598408,16711.0,16710.0,0.81418506]
[1672711501202,0.598408,16711.0,16710.0,1.51418506]
[1672711501447,0.598408,16711.0,16710.0,2.26009754]
[1672711502962,0.606908,16711.0,16710.0,2.26009754]
[1672711503200,1.205316,16711.0,16710.0,2.26009754]
[1672711505243,1.205316,16711.0,16710.0,1.51418506]
[1672711505995,1.20543253,16711.0,16710.0,1.51418506]
[1672711506480,1.205316,16711.0,16710.0,1.51418506]
[1672711509500,0.88444996,16716.0,16710.0,2.4554567]
[1672711509750,0.6065255,16714.0,16711.0,1.9993411]
[1672711510012,0.0085,16713.0,16712.0,0.74634108]
[1672711510241,0.606836,16713.0,16712.0,0.74634108]
[1672711510501,0.60673153,16713.0,16712.0,0.74634108]
[1672711511044,0.60673153,16713.0,16712.0,1.44634108]
[1672711511513,0.60673153,16713.0,16712.0,1.58634108]
[1672711512391,0.60673153,16713.0,16712.0,2.24123665]
[1672711514022,0.60673153,16713.0,16712.0,1.49489557]
[1672711515397,0.60673153,16713.0,16712.0,1.58634108]
[1672711515640,1.50506753,16713.0,16712.0,0.84]
[1672711516149,1.50506753,16713.0,16712.0,1.58634108]
[1672711518893,1.20506753,16713.0,16712.0,1.58634108]
[1672711523161,1.20506753,16713.0,16712.0,0.88634108]
[1672711523412,1.50506753,16713.0,16712.0,0.14]
[1672711524192,1.50506753,16713.0,16712.0,0.84]
[1672711524996,1.86450163,16713.0,16712.0,0.84]
[1672711525216,2.43380956,16713.0,16712.0,0.84]
[1672711525701,1.82728406,16713.0,16712.0,0.84]
[1672711525964,1.88985583,16713.0,16712.0,0.84]
[1672711526228,2.49638133,16713.0,16712.0,0.84]
[1672711526727,2.49638133,16713.0,16712.0,0.7]
[1672711526977,2.49638133,16713.0,16712.0,0.8]
[1672711529225,1.88985583,16713.0,16712.0,0.8]
[1672711531573,1.8814603,16713.0,16712.0,0.8]
[1672711532328,2.95225873,16713.0,16712.0,0.73617393]
[1672711532611,2.95225873,16713.0,16712.0,0.61683122]
[1672711533143,2.95225873,16713.0,16712.0,0.51683122]
[1672711533364,2.96425873,16713.0,16712.0,0.52383122]
[1672711533654,0.4,16712.0,16709.0,0.7407388]
[1672711533930,2.70944179,16711.0,16710.0,0.7]
[1672711534170,3.03324179,16711.0,16710.0,0.7]
[1672711534674,2.427524,16711.0,16710.0,0.7]
[1672711534929,3.03324179,16711.0,16710.0,0.72]
[1672711535183,2.427524,16711.0,16710.0,0.72]
[1672711538518,2.42764053,16711.0,16710.0,0.72]
[1672711540333,2.427524,16711.0,16710.0,0.72]
[1672711540576,2.42764053,16711.0,16710.0,0.72]
[1672711540835,2.26574053,16711.0,16710.0,0.72]
[1672711541352,2.32832107,16711.0,16710.0,0.72]
[1672711542115,2.32820454,16711.0,16710.0,0.72]
[1672711543638,2.16630454,16711.0,16710.0,0.72]
[1672711545956,2.16642107,16711.0,16710.0,0.72]
[1672711547448,2.16630454,16711.0,16710.0,0.72]
[1672711548213,2.16642107,16711.0,16710.0,0.72]
[1672711548464,2.16630454,16711.0,16710.0,0.02]
[1672711549452,2.16642107,16711.0,16710.0,0.02]
[1672711549971,2.16642107,16711.0,16710.0,0.72]
[1672711550222,2.16630454,16711.0,16710.0,0.72]
[1672711551955,2.16642107,16711.0,16710.0,0.72]
[1672711553241,2.16630454,16711.0,16710.0,0.72]
[1672711554603,2.16630454,16711.0,16710.0,2.02791431]
[1672711555110,2.103724,16711.0,16710.0,2.02791431]
[1672711555348,2.103724,16711.0,16710.0,2.02784212]
[1672711555606,2.103724,16711.0,16710.0,1.28710332]
[1672711555885,2.103724,16711.0,16710.0,2.02784212]
[1672711556849,2.103724,16711.0,16710.0,1.28710332]
[1672711557108,2.103724,16711.0,16710.0,2.02784212]
[1672711557358,2.103724,16711.0,16710.0,1.28710332]
[1672711557841,2.103724,16711.0,16710.0,2.02784212]
[1672711558810,2.103724,16711.0,16710.0,1.28710332]
[1672711559585,2.103724,16711.0,16710.0,2.02784212]
[1672711562066,1.505316,16711.0,16710.0,2.02784212]
[1672711563079,1.205316,16711.0,16710.0,2.02784212]
[1672711564595,0.598408,16711.0,16710.0,2.18974212]
[1672711566313,1.496816,16711.0,16710.0,2.18974212]
[1672711566813,1.196816,16711.0,16710.0,2.02784212]
[1672711567075,1.496816,16711.0,16710.0,2.02784212]
[1672711567592,0.598408,16711.0,16710.0,2.02784212]
[1672711572177,1.196816,16711.0,16710.0,2.02784212]
[1672711574788,1.496816,16711.0,16710.0,2.02784212]
[1672711575539,1.50543253,16711.0,16710.0,0.71992781]
[1672711576048,1.505316,16711.0,16710.0,0.71992781]
[1672711577309,1.505316,16711.0,16710.0,1.35452333]
[1672711577558,1.505316,16711.0,16710.0,2.09526213]
[1672711577559,1.205316,16711.0,16710.0,2.09526213]
[1672711578562,1.505316,16711.0,16710.0,2.09526213]
[1672711580097,1.505316,16711.0,16710.0,2.09515706]
[1672711580354,1.205316,16711.0,16710.0,2.09515706]
[1672711580908,1.505316,16711.0,16710.0,2.09515706]
[1672711581400,1.505316,16711.0,16710.0,1.35441826]
[1672711581659,1.505316,16711.0,16710.0,2.09515706]
[1672711583041,1.505316,16711.0,16710.0,1.35441826]
[1672711583300,1.505316,16711.0,16710.0,2.09515706]
[1672711583578,1.505316,16711.0,16710.0,1.35441826]
[1672711584086,1.50543253,16711.0,16710.0,1.35441826]
[1672711584329,1.505316,16711.0,16710.0,1.35441826]
[1672711586590,1.505316,16711.0,16710.0,2.09515706]
[1672711586844,1.205316,16711.0,16710.0,2.09515706]
[1672711587827,1.505316,16711.0,16710.0,1.35441826]
[1672711588084,1.505316,16711.0,16710.0,0.65441826]
[1672711588878,1.50543253,16711.0,16710.0,1.35441826]
[1672711589132,1.505316,16711.0,16710.0,0.71982274]
[1672711589890,2.11115032,16711.0,16710.0,0.71982274]
[1672711590160,0.759101,16712.0,16710.0,0.71982274]
[1672711590161,0.4,16712.0,16710.0,0.71982274]
[1672711590410,0.1619,16712.0,16711.0,0.70729154]
[1672711590673,0.82285141,16712.0,16711.0,1.40729154]
[1672711591193,0.83585141,16712.0,16711.0,1.40729154]
[1672711591449,1.72125241,16712.0,16711.0,1.40729154]
[1672711591712,1.73425241,16712.0,16711.0,1.40729154]
[1672711592240,0.3,16712.0,16711.0,0.7]
[1672711592484,0.3085,16712.0,16711.0,0.7]
[1672711593550,0.0085,16712.0,16711.0,0.7]
[1672711593795,0.4704,16712.0,16711.0,0.7]
[1672711595820,0.51163936,16712.0,16711.0,0.7]
[1672711597327,1.11001136,16712.0,16711.0,0.7]
[1672711598115,1.11001136,16712.0,16710.0,1.38150231]
[1672711598380,0.7085,16711.0,16710.0,0.63075963]
[1672711598598,1.905316,16711.0,16710.0,0.63075963]
[1672711598895,1.905316,16711.0,16710.0,1.33075963]
[1672711599414,1.905316,16711.0,16710.0,1.33087992]
[1672711599906,1.505316,16711.0,16710.0,1.36387992]
[1672711602601,1.500316,16711.0,16710.0,1.36387992]
[1672711602876,1.496816,16711.0,16710.0,1.36387992]
[1672711604661,1.496816,16711.0,16710.0,0.66375963]
[1672711604908,1.505316,16711.0,16710.0,0.66375963]
[1672711605673,1.505316,16711.0,16710.0,1.36375963]
[1672711608261,1.505316,16711.0,16710.0,1.36387992]
[1672711616701,1.505316,16711.0,16710.0,1.36375963]
[1672711617710,1.505316,16711.0,16710.0,0.66375963]
[1672711618706,1.505316,16711.0,16710.0,1.33075963]
[1672711620178,1.505316,16711.0,16710.0,1.36375963]
[1672711623699,1.505316,16711.0,16710.0,1.36366386]
[1672711624746,1.505316,16711.0,16710.0,0.66366386]
[1672711625658,1.505316,16711.0,16710.0,1.36366386]
[1672711629559,1.505316,16711.0,16710.0,1.33066386]
[1672711629795,1.505316,16711.0,16710.0,1.36366386]
[1672711631039,1.505316,16711.0,16710.0,1.33066386]
[1672711631282,1.505316,16711.0,16710.0,1.36366386]
[1672711631521,1.505316,16711.0,16710.0,0.66366386]
[1672711632279,1.505316,16711.0,16710.0,0.63066386]
[1672711632524,1.505316,16711.0,16710.0,1.36366386]
[1672711638706,1.505316,16711.0,16710.0,0.66366386]
[1672711639732,1.505316,16711.0,16710.0,1.36366386]
[1672711641354,1.205316,16711.0,16710.0,2.11440654]
[1672711646723,1.205316,16711.0,16710.0,1.36366386]
[1672711647215,1.505316,16711.0,16710.0,1.36366386]
[1672711647716,1.205316,16711.0,16710.0,1.36366386]
[1672711648725,1.205316,16711.0,16710.0,0.66355693]
[1672711649770,1.205316,16711.0,16710.0,1.36355693]
[1672711651388,1.505316,16711.0,16710.0,1.36355693]
[1672711651625,1.205316,16711.0,16710.0,1.36355693]
[1672711655277,1.205316,16711.0,16710.0,2.11429961]
[1672711655526,1.205316,16711.0,16710.0,0.66355693]
[1672711656299,1.505316,16711.0,16710.0,0.66355693]
[1672711656550,1.205316,16711.0,16710.0,0.66355693]
[1672711656812,1.205316,16711.0,16710.0,1.36355693]
[1672711657209,1.205316,16711.0,16710.0,2.11429961]
[1672711657455,1.205316,16711.0,16710.0,1.36355693]
[1672711658059,1.505316,16711.0,16710.0,1.36355693]
[1672711658320,1.505316,16711.0,16710.0,1.33055693]
[1672711658571,1.505316,16711.0,16710.0,1.36355693]
[1672711659864,1.505316,16711.0,16710.0,1.33055693]
[1672711660127,1.505316,16711.0,16710.0,1.36355693]
[1672711668093,1.505316,16711.0,16710.0,0.66355693]
[1672711669161,1.505316,16711.0,16710.0,1.36355693]
[1672711671989,1.505316,16711.0,16710.0,1.36344034]
[1672711673832,1.505316,16711.0,16710.0,0.733]
[1672711674334,1.905316,16711.0,16710.0,0.733]
[1672711687117,1.905316,16711.0,16710.0,0.033]
[1672711688103,1.905316,16711.0,16710.0,0.733]
[1672711689093,1.505316,16711.0,16710.0,0.733]
[1672711690150,1.905316,16711.0,16710.0,0.733]
[1672711693366,1.505316,16711.0,16710.0,0.733]
[1672711694917,1.905316,16711.0,16710.0,0.73289388]
[1672711695920,1.96788998,16711.0,16710.0,0.73289388]
[1672711696418,1.96788998,16711.0,16710.0,0.03289388]
[1672711697434,1.96788998,16711.0,16710.0,0.73289388]
[1672711697687,1.56788998,16711.0,16710.0,0.73289388]
[1672711697934,1.96788998,16711.0,16710.0,0.73289388]
[1672711698975,2.48499887,16711.0,16710.0,0.73289388]
[1672711699731,1.96788998,16711.0,16710.0,0.73289388]
[1672711700493,1.56788998,16711.0,16710.0,0.73289388]
[1672711702266,1.96788998,16711.0,16710.0,0.73289388]
[1672711703510,1.96788998,16711.0,16710.0,0.03289388]
[1672711704654,1.96788998,16711.0,16710.0,0.73289388]
[1672711710401,1.56788998,16711.0,16710.0,0.03289388]
[1672711710650,1.96788998,16711.0,16710.0,0.03289388]
[1672711711522,1.96788998,16711.0,16710.0,0.73289388]
[1672711711943,1.56788998,16711.0,16710.0,0.73289388]
[1672711715070,1.96788998,16711.0,16710.0,0.73289388]
[1672711717379,1.96788998,16711.0,16710.0,0.73280359]
[1672711717604,1.96788998,16711.0,16710.0,0.03280359]
[1672711717854,2.0096737,16711.0,16710.0,0.03280359]
[1672711719562,2.0096737,16711.0,16710.0,0.73280359]
[1672711722062,2.36174544,16711.0,16710.0,0.73280359]
[1672711724332,2.0096737,16711.0,16710.0,0.73280359]
[1672711724582,2.00960844,16711.0,16710.0,0.73280359]
[1672711725331,2.00960844,16711.0,16710.0,0.03280359]
[1672711725580,2.00960844,16711.0,16710.0,0.73280359]
[1672711731707,2.00960844,16711.0,16710.0,0.03280359]
[1672711732739,2.00960844,16711.0,16710.0,0.73280359]
[1672711738642,2.00960844,16711.0,16710.0,0.03280359]
[1672711739645,2.00960844,16711.0,16710.0,0.73280359]
[1672711745419,2.00960844,16711.0,16710.0,0.7]
[1672711747854,2.17150844,16711.0,16710.0,0.7]
[1672711749118,1.77150844,16711.0,16710.0,0.69988739]
[1672711751342,1.60960844,16711.0,16710.0,0.69988739]
[1672711752098,1.60960844,16711.0,16709.0,0.56409279]
[1672711752349,0.3085,16710.0,16709.0,0.56409279]
[1672711753072,0.3085,16710.0,16709.0,1.26409279]
[1672711753573,0.3085,16710.0,16709.0,1.29709279]
[1672711756345,1.505388,16710.0,16709.0,1.29709279]
[1672711760882,1.505388,16710.0,16709.0,2.03657431]
[1672711763344,1.505388,16710.0,16709.0,2.03669461]
[1672711763585,1.505388,16710.0,16709.0,2.03657431]
[1672711764367,1.505388,16710.0,16709.0,2.03669461]
[1672711764851,1.505388,16710.0,16709.0,2.03657431]
[1672711766014,1.505388,16710.0,16709.0,1.33657431]
[1672711766328,1.505388,16710.0,16709.0,0.59709279]
[1672711766606,1.505388,16710.0,16709.0,0.033]
[1672711767142,1.505388,16710.0,16709.0,0.733]
[1672711773916,1.505388,16710.0,16709.0,0.73289523]
[1672711774920,0.73477002,16712.0,16709.0,0.73289523]
[1672711775133,0.4,16712.0,16710.0,0.67937538]
[1672711775436,0.4,16712.0,16710.0,2.14060046]
[1672711776193,0.4,16712.0,16710.0,1.38437538]
[1672711776438,0.3,16711.0,16710.0,2.14560046]